fUSD/lending_fUSD_20250906
["ID","MTS","AMOUNT","RATE_DAILY","PERIOD"]
[383886046,1757155838541,-504.19,0.00040069,2]
[383886047,1757155838550,-942.6447624,0.00040122,15]
[383886048,1757155838560,-692.0,0.00040285,120]
[383886049,1757155838570,-692.0,0.00040293,2]
[383886050,1757155838579,-500.0,0.00040333,30]
[383886051,1757155838589,-784.0,0.00040359,2]
[383886052,1757155838598,-692.0,0.00040385,120]
[383886053,1757155838608,-500.0,0.00040476,30]
[383886054,1757155838618,-3516.62389399,0.0004053,2]
[383886055,1757155838627,-1656.07059,0.00040532,2]
[383886056,1757155838636,-692.0,0.00040599,2]
[383886057,1757155838646,-692.0,0.00040724,7]
[383886058,1757155838656,-784.0,0.00040786,120]
[383886059,1757155838666,-158.0,0.00041,90]
[383886060,1757155838678,-784.0,0.00041029,7]
[383886061,1757155838687,-692.0,0.00041067,7]
[383886062,1757155838696,-174.94674084,0.00041074,28]
[383886063,1757155838705,-459.98,0.00041096,120]
[383886064,1757155838714,-599.6,0.00041174,30]
[383886065,1757155838723,-12713.89836854,0.000412,18]
[383886066,1757155838734,-602.84,0.00041212,30]
[383886067,1757155838743,-942.6447624,0.00041344,15]
[383886068,1757155838753,-2000.0,0.000414,2]
[383886069,1757155838762,-191.93739556,0.000415,120]
[383886070,1757155838771,-692.0,0.00041662,2]
[383886071,1757155838781,-784.0,0.00041759,7]
[383886072,1757155838791,-692.0,0.0004176,2]
[383886073,1757155838800,-500.0,0.00041804,30]
[383886074,1757155838810,-384.7,0.0004181,120]
[383886075,1757155838819,-692.0,0.00041849,2]
[383886076,1757155838829,-504.19,0.00041977,2]
[383886077,1757155838838,-784.0,0.00041998,2]
[383886078,1757155838847,-354.45125009,0.00042,120]
[383886079,1757155838856,-1698.7146035,0.00042,2]
[383886080,1757155838866,-288.7866592,0.00042,30]
[383886081,1757155838875,-1347.3945809,0.0004201,2]
[383886082,1757155838884,-784.0,0.00042045,2]
[383886083,1757155838895,-2819.73492828,0.0004205,15]
[383886084,1757155838904,-150.0,0.00042073,10]
[383886085,1757155838913,-501.53246808,0.00042073,10]
[383886086,1757155838922,-500.0,0.00042081,30]
[383886087,1757155838931,-46344.1528,0.000421,2]
[383886088,1757155838941,-181.07,0.0004215,120]
[383886089,1757155838950,-366.19,0.0004218,14]
[383886090,1757155838960,-3600.0,0.000422,2]
[383886091,1757155838970,-500.0,0.00042238,30]
[383886092,1757155838979,-166.92,0.00042353,120]
[383886093,1757155838989,-157.0,0.000424,120]
[383886094,1757155838998,-13966.6060075,0.00042447,2]
[383886095,1757155839008,-1912.10194042,0.00042452,14]
[383886096,1757155839017,-921.06587215,0.00042463,39]
[383886097,1757155839026,-290.29552202,0.000425,120]
[383886098,1757155839036,-1656.07059,0.00042532,2]
[383886099,1757155839045,-784.0,0.00042552,120]
[383886100,1757155839054,-942.6447624,0.00042567,15]
[383886101,1757155839064,-692.0,0.00042591,2]
[383886102,1757155839074,-250.0,0.00042621,10]
[383886103,1757155839083,-692.0,0.00042671,2]
[383886104,1757155839092,-982.65739419,0.0004282,2]
[383886105,1757155839102,-291.27,0.00042894,14]
[383886106,1757155839111,-2819.73492822,0.00042922,15]
[383886107,1757155839121,-249.81740006,0.0004299,3]
[383886108,1757155839131,-151.0,0.00042995,2]
[383886109,1757155839140,-1775.77208657,0.00042995,2]
[383886110,1757155839150,-312.0,0.00042995,2]
[383886111,1757155839159,-151.0,0.00042995,2]
[383886112,1757155839169,-151.0,0.00042995,2]
[383886113,1757155839179,-151.0,0.00042995,2]
[383886114,1757155839189,-151.0,0.00042995,2]
[383886115,1757155839199,-151.0,0.00042995,2]
[383886116,1757155839209,-151.0,0.00042995,2]
[383886117,1757155839219,-257.91778498,0.00042995,2]
[383886118,1757155839228,-151.0,0.00042995,2]
[383886119,1757155839238,-151.0,0.00042995,2]
[383886120,1757155839247,-285.95900921,0.00042995,2]
[383886121,1757155839257,-1000.0,0.00042995,2]
[383886122,1757155839267,-1000.0,0.00042995,2]
[383886123,1757155839276,-1000.0,0.00042995,2]
[383886124,1757155839287,-1000.0,0.00042995,2]
[383886125,1757155839296,-308.73183728,0.00042995,2]
[383886126,1757155839308,-129446.2454728,0.00043,120]
[383886127,1757155839320,-214.0,0.00043,7]
[383886128,1757155839330,-9111.24506891,0.00043,120]
[383886129,1757155839342,-19617.14260069,0.00043,120]
[383886130,1757155839355,-391.0,0.00043038,60]
[383886131,1757155839365,-156.587,0.0004305,2]
[383886132,1757155839374,-162.380719,0.00043105,2]
[383886133,1757155839383,-162.166521,0.0004316,2]
[383886134,1757155839392,-350.0,0.00043168,10]
[383886135,1757155839402,-692.0,0.00043202,2]
[383886136,1757155839411,-692.0,0.00043247,7]
[383886137,1757155839420,-3800.0,0.000435,120]
[383886138,1757155839430,-168.64,0.00043525,2]
[383886139,1757155839439,-552.30562018,0.00043716,10]
[383886140,1757155839448,-942.6447624,0.00043789,15]
[383886141,1757155839457,-2819.73492822,0.00043794,15]
[383886142,1757155839466,-491.49660913,0.000438,30]
[383886143,1757155839476,-153.0,0.00043836,10]
[383886144,1757155839485,-504.19,0.00043885,2]
[383886145,1757155839495,-1121.1669554,0.00043987,120]
[383886146,1757155839504,-326.92486487,0.00044,120]
[383886147,1757155839516,-4940.96809492,0.00044231,3]
[383886148,1757155839526,-4364.6614366,0.00044241,2]
[383886149,1757155839536,-399.9457502,0.00044259,2]
[383886150,1757155839545,-174.94674084,0.00044349,28]
[383886151,1757155839555,-267.46074303,0.00044364,2]
[383886152,1757155839565,-374.38642563,0.0004439,120]
[383886153,1757155839574,-571.19697879,0.000445,7]
[383886154,1757155839584,-1656.07059,0.00044532,2]
[383886155,1757155839593,-541.44,0.00044549,30]
[383886157,1757155839603,-541.44,0.00044549,30]
[383886159,1757155839612,-541.44,0.00044549,30]
[383886161,1757155839623,-541.44,0.00044549,30]
[383886163,1757155839632,-4940.96809492,0.00044606,3]
[383886165,1757155839641,-2287.20679459,0.00044667,15]
[383886196,1757155839946,-532.52813363,0.00044667,15]
[383886197,1757155839955,-519.7152201,0.000448,120]
[383886198,1757155839966,-283.25182186,0.0004497,3]
[383886199,1757155840005,-9844.42946575,0.0004497,3]
[383886200,1757155840023,-461.76989706,0.0004497,3]
[383886201,1757155840041,-590.70084419,0.0004497,3]
[383886202,1757155840512,-107.10903621,0.00043836,31]
[383886205,1757155842736,-61.78690696,0.00043836,31]
[383886206,1757155842748,-338.21309304,0.0004497,3]
[383886207,1757155842763,-3304.5391629,0.0004497,3]
[383886208,1757155842774,-1168.87168913,0.0004498,3]
[383886209,1757155842979,-46.09867175,0.0004498,3]
[383886210,1757155842999,-164.23,0.00043354,2]
[383886211,1757155843012,-23489.87011372,0.0004498,3]
[383886212,1757155843025,-54350.6490441,0.0004499,3]
[383886213,1757155843038,-6026.52105983,0.00044999,120]
[383886214,1757155843049,-30300.49532634,0.00045,2]
[383886215,1757155843061,-197.21836807,0.00045,120]
[383886216,1757155843072,-13265.44063902,0.00045,120]
[383886217,1757155843083,-322.85434302,0.00045,120]
[383886218,1757155843094,-51807.73787618,0.00045,120]
[383886219,1757155843108,-428.31413345,0.00045,120]
[383886221,1757155843119,-478.14697816,0.00045,120]
[383886224,1757155843131,-5091.96432432,0.00045,120]
[383886226,1757155843142,-337.89571359,0.00045,120]
[383886228,1757155843153,-308.69188117,0.00045,120]
[383886230,1757155843164,-1638.0,0.00045,120]
[383886232,1757155843176,-4454.0,0.00045,120]
[383886235,1757155843187,-150.0,0.00045,7]
[383886237,1757155843198,-161.64070028,0.00045,7]
[383886239,1757155843209,-156.67306377,0.00045,7]
[383886241,1757155843221,-156.89004854,0.00045,7]
[383886244,1757155843232,-150.0,0.00045,7]
[383886246,1757155843244,-150.0,0.00045,7]
[383886248,1757155843255,-150.0,0.00045,7]
[383886249,1757155843267,-150.0,0.00045,7]
[383886250,1757155843278,-942.6447624,0.00045011,15]
[383886251,1757155843289,-4940.96809492,0.0004507,3]
[383886252,1757155843301,-150.48,0.00045097,30]
[383886253,1757155843313,-150.0,0.00045097,30]
[383886254,1757155843325,-150.0,0.00045097,30]
[383886257,1757155843336,-1503.0,0.000451,2]
[383886258,1757155843347,-500.0,0.0004515,30]
[383886259,1757155843359,-606.86,0.00045157,30]
[383886260,1757155843371,-4940.96809492,0.0004536,3]
[383886261,1757155843382,-4940.96809492,0.0004539,3]
[383886262,1757155843394,-921.06587215,0.00045391,46]
[383886263,1757155843406,-4441.0,0.000454,7]
[383886264,1757155843416,-4759.82,0.000455,14]
[383886265,1757155843428,-4940.96809492,0.00045529,3]
[383886266,1757155843439,-2819.73492822,0.00045539,15]
[383886267,1757155843451,-500.0,0.00045625,30]
[383886268,1757155843463,-175.8525877,0.000457,90]
[383886269,1757155843477,-223.76566616,0.000457,120]
[383886270,1757155843491,-737.9069054,0.00045707,2]
[383886271,1757155843506,-277.35679052,0.00045733,2]
[383886272,1757155843519,-4940.96809492,0.0004578,3]
[383886273,1757155843535,-504.19,0.00045793,2]
[383886274,1757155843548,-3509.95542347,0.000458,2]
[383886275,1757155843561,-923.0,0.000458,30]
[383886276,1757155843574,-164.30831261,0.00045849,120]
[383886277,1757155843589,-4940.96809492,0.0004597,3]
[383886278,1757155843604,-384.7,0.00045992,120]
[383886279,1757155843615,-235.87398347,0.00046,120]
[383886280,1757155843629,-152.1307941,0.00046,120]
[383886281,1757155843643,-5953.03247289,0.00046,120]
[383886282,1757155843657,-218.9480284,0.00046,120]
[383886283,1757155843672,-400.0,0.00046,120]
[383886284,1757155843684,-412.2464079,0.000461,120]
[383886285,1757155843696,-237.35046727,0.0004613,120]
[383886286,1757155843707,-4940.96809492,0.00046152,3]
[383886287,1757155843719,-400.0,0.000462,120]
[383886288,1757155843731,-500.0,0.00046228,30]
[383886289,1757155843743,-942.6447624,0.00046233,15]
[383886290,1757155843755,-400.0,0.000463,120]
[383886291,1757155843768,-4940.96809492,0.000463,3]
[383886292,1757155843780,-4940.96809492,0.0004632,3]
[383886293,1757155843792,-6026.52105983,0.0004633,120]
[383886294,1757155843804,-181.07,0.00046365,120]
[383886295,1757155843816,-9881.93618984,0.00046372,3]
[383886296,1757155843828,-13966.6060075,0.00046382,2]
[383886297,1757155843840,-400.0,0.000464,120]
[383886298,1757155843851,-708.52361486,0.000464,120]
[383886299,1757155843863,-171.76784317,0.000464,120]
[383886300,1757155843877,-4940.96809492,0.00046401,3]
[383886301,1757155843888,-500.0,0.00046402,30]
[383886302,1757155843900,-2819.73492822,0.00046411,15]
[383886303,1757155843912,-500.0,0.00046459,30]
[383886304,1757155843923,-400.0,0.000465,120]
[383886305,1757155843934,-1656.07059,0.00046532,2]
[383886306,1757155843947,-2469.9,0.00046575,120]
[383886307,1757155843958,-400.0,0.000466,120]
[383886308,1757155843970,-459.4875817,0.000466,120]
[383886309,1757155843982,-400.0,0.000467,120]
[383886310,1757155843994,-157.0,0.000467,120]
[383886311,1757155844006,-609.06,0.00046777,30]
[383886312,1757155844017,-177.7784422,0.000468,60]
[383886313,1757155844028,-400.0,0.000468,120]
[383886314,1757155844040,-400.0,0.000468,120]
[383886315,1757155844051,-400.0,0.000469,120]
[383886316,1757155844062,-500.0,0.00046947,30]
[383886317,1757155844075,-4940.96809492,0.0004698,3]
[383886318,1757155844086,-553.06406207,0.00047,120]
[383886319,1757155844097,-400.0,0.00047,120]
[383886320,1757155844109,-400.0,0.00047,120]
[383886321,1757155844120,-400.0,0.00047,120]
[383886322,1757155844133,-500.0,0.00047012,30]
[383886323,1757155844145,-400.0,0.000471,120]
[383886324,1757155844157,-287.61899177,0.00047102,2]
[383886325,1757155844169,-400.0,0.000472,120]
[383886326,1757155844181,-1542.72,0.00047235,2]
[383886327,1757155844194,-4940.96809492,0.00047273,3]
[383886328,1757155844206,-2819.73492822,0.00047283,15]
[383886329,1757155844218,-400.0,0.000473,120]
[383886330,1757155844231,-548.0,0.00047342,60]
[383886331,1757155844242,-400.0,0.000474,120]
[383886332,1757155844254,-942.6447624,0.00047456,15]
[383886333,1757155844266,-500.0,0.00047495,30]
[383886334,1757155844277,-195.26523371,0.000475,120]
[383886335,1757155844288,-4759.82,0.000475,14]
[383886336,1757155844300,-439.07369537,0.000475,120]
[383886337,1757155844315,-400.0,0.000475,120]
[383886338,1757155844327,-4940.96809492,0.0004756,3]
[383886339,1757155844339,-5281.40996035,0.000476,2]
[383886340,1757155844351,-174.94674084,0.00047625,28]
[383886341,1757155844360,-4940.96809492,0.0004766,3]
[383886342,1757155844370,-159.38,0.00047671,30]
[383886343,1757155844380,-4940.96809492,0.0004769,3]
[383886344,1757155844390,-6026.52105983,0.000477,120]
[383886345,1757155844399,-4940.96809492,0.0004788,3]
[383886346,1757155844409,-5000.0,0.0004789,120]
[383886347,1757155844419,-14822.9042848,0.0004796,4]
[383886348,1757155844429,-9881.93618984,0.0004797,4]
[383886349,1757155844439,-4940.96809492,0.00047988,4]
[383886350,1757155844449,-193.68972736,0.0004799,7]
[383886351,1757155844459,-7614.91781581,0.00047997,120]
[383886352,1757155844468,-197.0,0.00047998,120]
[383886353,1757155844478,-157.15415631,0.00047999,120]
[383886354,1757155844487,-216446.89672937,0.00048,120]
[383886355,1757155844497,-899.64,0.00048,14]
[383886356,1757155844507,-167.0,0.00048,90]
[383886357,1757155844516,-176.0,0.00048,90]
[383886358,1757155844525,-899.65,0.000481,14]
[383886359,1757155844536,-2819.73492822,0.00048156,15]
[383886360,1757155844546,-169.0,0.000482,120]
[383886361,1757155844980,-921.06587215,0.00048318,52]
[383886362,1757155845004,-500.0,0.00048321,30]
[383886363,1757155845017,-500.0,0.00048397,30]
[383886364,1757155845027,-298.26089446,0.00048471,2]
[383886365,1757155845037,-287.22,0.00048493,30]
[383886366,1757155845046,-3000.0,0.000485,120]
[383886367,1757155845056,-1698.26,0.000485,30]
[383886368,1757155845066,-3800.0,0.000485,120]
[383886369,1757155845076,-1656.07059,0.00048532,2]
[383886370,1757155845086,-431.62142124,0.00048597,50]
[383886371,1757155845095,-942.6447624,0.00048678,15]
[383886372,1757155845105,-899.64,0.000487,14]
[383886373,1757155845115,-500.0,0.00048767,110]
[383886374,1757155845124,-1503.77349538,0.000488,2]
[383886375,1757155845134,-4000.0,0.00048869,120]
[383886376,1757155845144,-2092.589072,0.00049,120]
[383886377,1757155845154,-399401.19017841,0.00049,120]
[383886378,1757155845163,-2819.73492822,0.00049028,15]
[383886379,1757155845174,-1144.29194852,0.00049115,30]
[383886380,1757155845183,-324.70935036,0.00049215,120]
[383886381,1757155845193,-501.0,0.00049288,120]
[383886382,1757155845203,-156.82,0.00049314,120]
[383886383,1757155845212,-179.00529582,0.00049314,120]
[383886384,1757155845223,-300.0,0.00049315,30]
[383886385,1757155845233,-300.0,0.00049315,30]
[383886386,1757155845242,-402.0726209,0.00049315,120]
[383886387,1757155845251,-401.49911123,0.00049315,120]
[383886388,1757155845261,-400.0,0.00049315,120]
[383886389,1757155845270,-402.53062111,0.00049315,120]
[383886390,1757155845280,-401.35851975,0.00049315,120]
[383886391,1757155845290,-400.0,0.00049315,120]
[383886392,1757155845299,-402.14425096,0.00049315,120]
[383886393,1757155845312,-405.49079402,0.00049315,120]
[383886394,1757155845322,-272.21134293,0.00049315,120]
[383886395,1757155845331,-400.0,0.00049315,120]
[383886396,1757155845340,-402.92928166,0.00049315,120]
[383886397,1757155845351,-400.0,0.00049315,120]
[383886398,1757155845361,-400.0,0.00049315,120]
[383886399,1757155845371,-401.84489862,0.00049315,120]
[383886400,1757155845380,-403.43507688,0.00049315,120]
[383886401,1757155845391,-419.918402,0.00049315,120]
[383886402,1757155845401,-400.0,0.00049315,120]
[383886403,1757155845411,-400.0,0.00049315,120]
[383886404,1757155845420,-400.0,0.00049315,120]
[383886405,1757155845430,-400.0,0.00049315,120]
[383886406,1757155845439,-400.0,0.00049315,120]
[383886407,1757155845449,-400.0,0.00049315,2]
[383886408,1757155845459,-400.0,0.00049315,120]
[383886409,1757155845469,-402.50330165,0.00049315,120]
[383886410,1757155845478,-400.0,0.00049315,120]
[383886411,1757155845487,-400.0,0.00049315,120]
[383886412,1757155845497,-400.0,0.00049315,120]
[383886413,1757155845507,-418.41461844,0.00049315,120]
[383886414,1757155845516,-400.0,0.00049315,120]
[383886415,1757155845526,-400.0,0.00049315,120]
[383886416,1757155845535,-400.0,0.00049315,120]
[383886417,1757155845545,-400.0,0.00049315,120]
[383886418,1757155845555,-827.72846726,0.00049315,120]
[383886419,1757155845571,-400.0,0.00049315,120]
[383886420,1757155845580,-400.0,0.00049315,120]
[383886421,1757155845589,-400.0,0.00049315,120]
[383886422,1757155845601,-400.0,0.00049315,120]
[383886423,1757155845618,-400.97229468,0.00049315,120]
[383886425,1757155845627,-400.0,0.00049315,120]
[383886426,1757155845637,-400.0,0.00049315,120]
[383886427,1757155845647,-400.0,0.00049315,120]
[383886428,1757155845656,-400.0,0.00049315,120]
[383886429,1757155845665,-400.0,0.00049315,120]
[383886430,1757155845675,-400.0,0.00049315,120]
[383886431,1757155845687,-400.0,0.00049315,120]
[383886432,1757155845702,-400.0,0.00049315,120]
[383886433,1757155845711,-400.0,0.00049315,120]
[383886434,1757155845720,-400.0,0.00049315,120]
[383886435,1757155845730,-400.0,0.00049315,120]
[383886436,1757155845740,-400.0,0.00049315,120]
[383886437,1757155845751,-400.0,0.00049315,120]
[383886438,1757155845760,-400.0,0.00049315,120]
[383886439,1757155845769,-400.0,0.00049315,120]
[383886440,1757155845778,-400.0,0.00049315,120]
[383886441,1757155845788,-475.95,0.00049315,120]
[383886442,1757155845798,-500.0,0.00049315,120]
[383886443,1757155845807,-400.0,0.00049315,120]
[383886444,1757155845816,-500.0,0.00049315,120]
[383886445,1757155845826,-400.0,0.00049315,120]
[383886446,1757155845836,-400.0,0.00049315,120]
[383886447,1757155845845,-400.0,0.00049315,120]
[383886448,1757155845855,-402.72111495,0.00049315,120]
[383886449,1757155845864,-400.0,0.00049315,120]
[383886450,1757155845874,-400.0,0.00049315,120]
[383886451,1757155845883,-1000.0,0.00049315,120]
[383886452,1757155845893,-400.0,0.00049315,120]
[383886453,1757155845903,-400.0,0.00049315,120]
[383886454,1757155845912,-400.0,0.00049315,120]
[383886455,1757155845922,-400.0,0.00049315,120]
[383886456,1757155845932,-400.0,0.00049315,120]
[383886457,1757155845941,-592.61,0.00049315,120]
[383886458,1757155845950,-400.0,0.00049315,120]
[383886459,1757155845959,-400.0,0.00049315,120]
[383886460,1757155845969,-400.0,0.00049315,120]
[383886461,1757155845978,-400.0,0.00049315,120]
[383886462,1757155845988,-400.0,0.00049315,120]
[383886463,1757155845997,-400.0,0.00049315,120]
[383886464,1757155846007,-400.0,0.00049315,120]
[383886465,1757155846016,-400.0,0.00049315,120]
[383886466,1757155846026,-400.0,0.00049315,120]
[383886467,1757155846036,-400.0,0.00049315,120]
[383886468,1757155846045,-400.0,0.00049315,120]
[383886469,1757155846055,-400.0,0.00049315,120]
[383886470,1757155846065,-400.0,0.00049315,120]
[383886471,1757155846074,-400.0,0.00049315,120]
[383886472,1757155846084,-400.0,0.00049315,120]
[383886473,1757155846094,-400.0,0.00049315,120]
[383886474,1757155846104,-400.0,0.00049315,120]
[383886476,1757155846114,-400.0,0.00049315,120]
[383886478,1757155846123,-400.0,0.00049315,120]
[383886480,1757155846132,-400.0,0.00049315,120]
[383886483,1757155846142,-400.0,0.00049315,120]
[383886486,1757155846153,-400.0,0.00049315,120]
[383886489,1757155846163,-514.12866248,0.00049315,120]
[383886492,1757155846171,-400.0,0.00049315,120]
[383886495,1757155846181,-400.0,0.00049315,120]
[383886498,1757155846190,-400.0,0.00049315,120]
[383886501,1757155846199,-500.0,0.00049315,2]
[383886504,1757155846209,-400.0,0.00049315,120]
[383886507,1757155846218,-500.0,0.00049315,2]
[383886510,1757155846228,-400.0,0.00049315,120]
[383886513,1757155846238,-400.0,0.00049315,120]
[383886516,1757155846248,-400.0,0.00049315,120]
[383886519,1757155846257,-400.0,0.00049315,120]
[383886522,1757155846266,-400.0,0.00049315,120]
[383886525,1757155846276,-400.0,0.00049315,120]
[383886528,1757155846286,-500.0,0.00049315,2]
[383886531,1757155846295,-500.0,0.00049315,2]
[383886533,1757155846306,-500.0,0.00049315,2]
[383886535,1757155846318,-500.0,0.00049315,2]
[383886537,1757155846328,-500.0,0.00049315,2]
[383886540,1757155846340,-510.86915167,0.00049315,2]
[383886542,1757155846350,-400.0,0.00049315,120]
[383886543,1757155846359,-400.0,0.00049315,120]
[383886544,1757155846368,-400.0,0.00049315,120]
[383886545,1757155846378,-503.17196435,0.00049315,2]
[383886546,1757155846387,-500.0,0.00049315,2]
[383886547,1757155846396,-400.0,0.00049315,120]
[383886548,1757155846405,-400.0,0.00049315,120]
[383886549,1757155846415,-400.0,0.00049315,120]
[383886550,1757155846424,-500.0,0.00049315,120]
[383886551,1757155846434,-400.0,0.00049315,120]
[383886552,1757155846443,-400.0,0.00049315,120]
[383886553,1757155846452,-400.0,0.00049315,120]
[383886554,1757155846462,-400.0,0.00049315,120]
[383886555,1757155846471,-400.0,0.00049315,120]
[383886556,1757155846480,-400.0,0.00049315,120]
[383886557,1757155846490,-400.0,0.00049315,120]
[383886558,1757155846499,-400.0,0.00049315,120]
[383886559,1757155846508,-400.0,0.00049315,120]
[383886560,1757155846518,-400.0,0.00049315,120]
[383886561,1757155846527,-400.0,0.00049315,120]
[383886562,1757155846536,-400.0,0.00049315,120]
[383886563,1757155846546,-400.0,0.00049315,120]
[383886564,1757155846555,-400.0,0.00049315,120]
[383886565,1757155846564,-400.0,0.00049315,120]
[383886566,1757155846574,-400.0,0.00049315,120]
[383886567,1757155846583,-400.0,0.00049315,120]
[383886568,1757155846594,-400.0,0.00049315,120]
[383886569,1757155846603,-400.0,0.00049315,120]
[383886570,1757155846612,-400.0,0.00049315,120]
[383886571,1757155846622,-497.11,0.00049315,120]
[383886572,1757155846631,-400.0,0.00049315,120]
[383886573,1757155846642,-400.0,0.00049315,120]
[383886574,1757155846651,-400.0,0.00049315,120]
[383886575,1757155846661,-400.0,0.00049315,120]
[383886576,1757155846671,-400.0,0.00049315,120]
[383886577,1757155846680,-402.15158799,0.00049315,120]
[383886578,1757155846691,-400.0,0.00049315,120]
[383886579,1757155846701,-400.0,0.00049315,120]
[383886580,1757155846711,-400.0,0.00049315,120]
[383886581,1757155846720,-418.28039132,0.00049315,120]
[383886582,1757155846730,-400.0,0.00049315,120]
[383886583,1757155846739,-400.0,0.00049315,120]
[383886584,1757155846749,-400.0,0.00049315,120]
[383886585,1757155846759,-400.0,0.00049315,120]
[383886586,1757155846769,-400.0,0.00049315,120]
[383886587,1757155846778,-400.0,0.00049315,120]
[383886588,1757155846788,-400.0,0.00049315,120]
[383886589,1757155846797,-400.0,0.00049315,120]
[383886590,1757155846807,-400.0,0.00049315,120]
[383886591,1757155846816,-402.32437757,0.00049315,120]
[383886592,1757155846825,-400.0,0.00049315,120]
[383886593,1757155846834,-400.0,0.00049315,120]
[383886594,1757155846843,-400.0,0.00049315,120]
[383886595,1757155846853,-400.0,0.00049315,120]
[383886596,1757155846862,-400.0,0.00049315,60]
[383886597,1757155846871,-400.0,0.00049315,120]
[383886598,1757155846881,-400.0,0.00049315,120]
[383886599,1757155846890,-400.0,0.00049315,120]
[383886600,1757155846900,-400.0,0.00049315,120]
[383886601,1757155846910,-400.0,0.00049315,120]
[383886602,1757155846919,-400.0,0.00049315,120]
[383886603,1757155846929,-400.0,0.00049315,120]
[383886604,1757155846939,-400.0,0.00049315,120]
[383886605,1757155846948,-400.0,0.00049315,120]
[383886606,1757155846958,-400.0,0.00049315,120]
[383886607,1757155846967,-400.0,0.00049315,120]
[383886608,1757155846976,-400.0,0.00049315,120]
[383886609,1757155846985,-401.66239235,0.00049315,120]
[383886610,1757155846995,-400.0,0.00049315,120]
[383886611,1757155847004,-400.0,0.00049315,120]
[383886612,1757155847013,-400.0,0.00049315,120]
[383886613,1757155847022,-400.0,0.00049315,120]
[383886614,1757155847031,-400.0,0.00049315,120]
[383886615,1757155847041,-500.0,0.00049315,120]
[383886616,1757155847050,-506.68988336,0.00049315,120]
[383886617,1757155847059,-400.0,0.00049315,120]
[383886618,1757155847068,-400.0,0.00049315,120]
[383886619,1757155847077,-400.0,0.00049315,120]
[383886620,1757155847087,-400.0,0.00049315,120]
[383886621,1757155847096,-400.0,0.00049315,120]
[383886622,1757155847107,-400.0,0.00049315,120]
[383886623,1757155847116,-400.0,0.00049315,120]
[383886624,1757155847127,-400.0,0.00049315,120]
[383886625,1757155847137,-400.0,0.00049315,120]
[383886626,1757155847146,-400.0,0.00049315,120]
[383886627,1757155847156,-400.0,0.00049315,120]
[383886628,1757155847165,-400.0,0.00049315,120]
[383886629,1757155847175,-400.0,0.00049315,120]
[383886630,1757155847185,-400.0,0.00049315,120]
[383886631,1757155847194,-400.0,0.00049315,120]
[383886632,1757155847204,-400.0,0.00049315,120]
[383886633,1757155847213,-400.0,0.00049315,120]
[383886634,1757155847223,-400.0,0.00049315,120]
[383886635,1757155847233,-400.0,0.00049315,120]
[383886636,1757155847242,-400.0,0.00049315,120]
[383886637,1757155847252,-400.0,0.00049315,14]
[383886638,1757155847261,-400.0,0.00049315,120]
[383886639,1757155847271,-400.0,0.00049315,120]
[383886640,1757155847281,-400.0,0.00049315,30]
[383886641,1757155847290,-400.0,0.00049315,120]
[383886642,1757155847299,-400.0,0.00049315,120]
[383886643,1757155847311,-400.0,0.00049315,120]
[383886644,1757155847320,-400.0,0.00049315,120]